lending/lending_fUSD_20250114
["ID","MTS","AMOUNT","RATE_DAILY","PERIOD"]
[348866291,1736830238093,-500.0,9.994e-05,2]
[348866293,1736830238102,-1581.63,9.994e-05,2]
[348866294,1736830238112,-977.29,9.994e-05,2]
[348866296,1736830238121,-709.87,9.994e-05,2]
[348866298,1736830238131,-500.0,9.995e-05,2]
[348866300,1736830238142,-2196.98,9.995e-05,2]
[348866302,1736830238151,-500.0,9.995e-05,2]
[348866304,1736830238161,-664.45,9.995e-05,2]
[348866305,1736830238171,-500.0,9.995e-05,2]
[348866307,1736830238180,-500.0,9.995e-05,2]
[348866309,1736830238189,-500.0,9.995e-05,2]
[348866311,1736830238199,-840.26,9.995e-05,2]
[348866313,1736830238208,-500.0,9.995e-05,2]
[348866315,1736830238217,-565.13,9.995e-05,2]
[348866317,1736830238227,-776.05,9.995e-05,2]
[348866319,1736830238236,-1344.86,9.995e-05,2]
[348866321,1736830238245,-632.07,9.995e-05,2]
[348866322,1736830238255,-500.0,9.995e-05,2]
[348866324,1736830238264,-500.0,9.995e-05,2]
[348866327,1736830238273,-500.0,9.995e-05,2]
[348866329,1736830238282,-500.0,9.995e-05,2]
[348866332,1736830238292,-1197.05,9.995e-05,2]
[348866335,1736830238303,-501.76428349,9.995e-05,2]
[348866336,1736830238313,-525.74,9.995e-05,2]
[348866339,1736830238322,-500.0,9.995e-05,2]
[348866341,1736830238331,-500.0,9.995e-05,2]
[348866342,1736830238340,-846.53,9.995e-05,2]
[348866344,1736830238349,-613.61,9.995e-05,2]
[348866346,1736830238358,-811.79,9.995e-05,2]
[348866347,1736830238367,-500.0,9.995e-05,2]
[348866349,1736830238376,-841.54,9.995e-05,2]
[348866352,1736830238386,-510.91524275,9.995e-05,2]
[348866354,1736830238396,-2315.38,9.995e-05,2]
[348866355,1736830238405,-500.0,9.995e-05,2]
[348866357,1736830238414,-500.0,9.995e-05,2]
[348866360,1736830238423,-500.0,9.995e-05,2]
[348866362,1736830238432,-509.45274208,9.995e-05,2]
[348866363,1736830238441,-500.0,9.995e-05,2]
[348866365,1736830238451,-500.0,9.995e-05,2]
[348866367,1736830238460,-500.0,9.995e-05,2]
[348866369,1736830238470,-500.0,9.995e-05,2]
[348866371,1736830238479,-500.0,9.995e-05,2]
[348866373,1736830238488,-500.0,9.995e-05,2]
[348866375,1736830238499,-1058.82,9.995e-05,2]
[348866377,1736830238507,-500.0,9.995e-05,2]
[348866379,1736830238516,-500.0,9.995e-05,2]
[348866381,1736830238525,-1146.41,9.995e-05,2]
[348866383,1736830238535,-500.0,9.995e-05,2]
[348866385,1736830238543,-939.47,9.995e-05,2]
[348866387,1736830238552,-500.0,9.995e-05,2]
[348866389,1736830238561,-500.0,9.995e-05,2]
[348866391,1736830238570,-500.0,9.995e-05,2]
[348866393,1736830238580,-1122.96,9.995e-05,2]
[348866395,1736830238589,-500.0,9.995e-05,2]
[348866397,1736830238598,-1007.49,9.995e-05,2]
[348866399,1736830238607,-500.0,9.995e-05,2]
[348866401,1736830238616,-500.0,9.995e-05,2]
[348866403,1736830238626,-562.44,9.995e-05,2]
[348866405,1736830238635,-511.50232763,9.995e-05,2]
[348866407,1736830238644,-500.0,9.995e-05,2]
[348866409,1736830238653,-500.0,9.995e-05,2]
[348866411,1736830238662,-500.0,9.995e-05,2]
[348866413,1736830238672,-1179.79,9.995e-05,2]
[348866415,1736830238682,-1708.11,9.995e-05,2]
[348866417,1736830238692,-507.33087612,9.995e-05,2]
[348866419,1736830238702,-500.0,9.995e-05,2]
[348866421,1736830238712,-500.0,9.995e-05,2]
[348866423,1736830238721,-500.0,9.995e-05,2]
[348866425,1736830238731,-256.89,9.995e-05,2]
[348866427,1736830238740,-500.0,9.995e-05,2]
[348866429,1736830238750,-3242.42,9.995e-05,2]
[348866431,1736830238759,-500.0,9.995e-05,2]
[348866433,1736830238769,-1792.01,9.995e-05,2]
[348866435,1736830238779,-844.7,9.995e-05,2]
[348866436,1736830238789,-500.0,9.995e-05,2]
[348866438,1736830238798,-500.0,9.995e-05,2]
[348866440,1736830238807,-500.0,9.995e-05,2]
[348866442,1736830238818,-1343.04,9.995e-05,2]
[348866444,1736830238827,-500.0,9.995e-05,2]
[348866446,1736830238836,-500.0,9.995e-05,2]
[348866448,1736830238845,-826.34,9.995e-05,2]
[348866450,1736830238854,-608.348537,9.995e-05,2]
[348866451,1736830238865,-687.62,9.995e-05,2]
[348866452,1736830238875,-663.96,9.995e-05,2]
[348866453,1736830238891,-500.0,9.995e-05,2]
[348866454,1736830238900,-500.0,9.995e-05,2]
[348866455,1736830238910,-3443.74,9.995e-05,2]
[348866456,1736830238919,-880.74,9.995e-05,2]
[348866457,1736830238930,-769.149759,9.995e-05,2]
[348866458,1736830238942,-500.0,9.995e-05,2]
[348866459,1736830238952,-656.79,9.995e-05,2]
[348866460,1736830238965,-701.98,9.995e-05,2]
[348866461,1736830238974,-1117.0,9.995e-05,2]
[348866462,1736830238984,-500.0,9.995e-05,2]
[348866463,1736830238994,-786.5,9.995e-05,2]
[348866464,1736830239003,-546.36,9.995e-05,2]
[348866465,1736830239013,-500.0,9.995e-05,2]
[348866466,1736830239023,-500.0,9.995e-05,2]
[348866467,1736830239032,-993.95,9.995e-05,2]
[348866468,1736830239041,-500.0,9.995e-05,2]
[348866469,1736830239051,-500.0,9.995e-05,2]
[348866470,1736830239060,-500.0,9.995e-05,2]
[348866471,1736830239070,-2137.18,9.995e-05,2]
[348866472,1736830239079,-4329.79,9.995e-05,2]
[348866473,1736830239089,-500.0,9.995e-05,2]
[348866474,1736830239099,-840.31,9.995e-05,2]
[348866475,1736830239109,-500.0,9.995e-05,2]
[348866476,1736830239118,-500.0,9.995e-05,2]
[348866477,1736830239128,-500.0,9.995e-05,2]
[348866478,1736830239137,-500.0,9.995e-05,2]
[348866479,1736830239147,-500.0,9.995e-05,2]
[348866480,1736830239157,-4452.09,9.995e-05,2]
[348866481,1736830239167,-354.0347493,9.995e-05,2]
[348866482,1736830239177,-500.0,9.995e-05,2]
[348866483,1736830239187,-500.0,9.995e-05,2]
[348866484,1736830239197,-747.68,9.995e-05,2]
[348866485,1736830239206,-500.0,9.995e-05,2]
[348866486,1736830239215,-3277.95,9.995e-05,2]
[348866487,1736830239225,-500.0,9.995e-05,2]
[348866488,1736830239234,-1296.2,9.995e-05,2]
[348866489,1736830239243,-500.0,9.995e-05,2]
[348866490,1736830239253,-5572.91,9.995e-05,2]
[348866491,1736830239263,-500.0,9.995e-05,2]
[348866492,1736830239273,-500.0,9.995e-05,2]
[348866493,1736830239282,-500.0,9.995e-05,2]
[348866494,1736830239291,-812.33,9.995e-05,2]
[348866495,1736830239301,-500.0,9.995e-05,2]
[348866496,1736830239311,-1985.35,9.996e-05,2]
[348866497,1736830239320,-989.34,9.996e-05,2]
[348866498,1736830239330,-500.0,9.996e-05,2]
[348866499,1736830239339,-896.02,9.996e-05,2]
[348866500,1736830239349,-500.0,9.996e-05,2]
[348866501,1736830239358,-887.96,9.996e-05,2]
[348866502,1736830239368,-500.0,9.996e-05,2]
[348866503,1736830239378,-500.0,9.996e-05,2]
[348866504,1736830239388,-500.0,9.996e-05,2]
[348866505,1736830239397,-526.92,9.996e-05,2]
[348866506,1736830239406,-500.0,9.996e-05,2]
[348866507,1736830239416,-500.0,9.996e-05,2]
[348866508,1736830239426,-464.99662067,9.997e-05,2]
[348866509,1736830239435,-464.99662067,9.997e-05,2]
[348866510,1736830239446,-464.99662067,9.997e-05,2]
[348866511,1736830239455,-464.99662067,9.998e-05,2]
[348866512,1736830239465,-2354.272,9.998e-05,2]
[348866513,1736830239474,-162.847,9.998e-05,2]
[348866514,1736830239484,-1610.17,9.998e-05,2]
[348866515,1736830239494,-1640.09,9.998e-05,2]
[348866516,1736830239504,-1960.03,9.998e-05,2]
[348866517,1736830239514,-1644.8,9.998e-05,2]
[348866518,1736830239523,-4125.98,9.998e-05,2]
[348866519,1736830239532,-1853.93,9.998e-05,2]
[348866520,1736830239542,-1561.19,9.998e-05,2]
[348866521,1736830239551,-1694.81,9.998e-05,2]
[348866522,1736830239561,-500.0,9.998e-05,2]
[348866523,1736830239571,-935.58,9.998e-05,2]
[348866524,1736830239581,-2030.52,9.998e-05,2]
[348866525,1736830239593,-930.45,9.998e-05,2]
[348866526,1736830239609,-862.46,9.998e-05,2]
[348866527,1736830239618,-860.19,9.998e-05,2]
[348866528,1736830239628,-500.0,9.998e-05,2]
[348866529,1736830239638,-1024.8,9.998e-05,2]
[348866530,1736830239647,-464.99662067,9.998e-05,2]
[348866531,1736830239656,-464.99662067,9.998e-05,2]
[348866532,1736830239666,-464.99662067,9.999e-05,2]
[348866533,1736830239676,-500.0,9.999e-05,2]
[348866534,1736830239685,-500.0,9.999e-05,2]
[348866535,1736830239694,-500.0,9.999e-05,2]
[348866536,1736830239703,-1236.19,9.999e-05,2]
[348866537,1736830239713,-3209.47,9.999e-05,2]
[348866538,1736830239723,-1729.77,9.999e-05,2]
[348866539,1736830239732,-2583.71,9.999e-05,2]
[348866540,1736830239742,-730.38,9.999e-05,2]
[348866541,1736830239751,-500.0,9.999e-05,2]
[348866543,1736830239761,-666.53,9.999e-05,2]
[348866544,1736830239770,-1376.53,9.999e-05,2]
[348866545,1736830239780,-1083.56,9.999e-05,2]
[348866546,1736830239789,-1538.16,9.999e-05,2]
[348866547,1736830239799,-1303.55,9.999e-05,2]
[348866548,1736830239808,-3183.98,9.999e-05,2]
[348866549,1736830239822,-1865.92,9.999e-05,2]
[348866550,1736830240002,-1941.09,9.999e-05,2]
[348866551,1736830240054,-1569.42,9.999e-05,2]
[348866552,1736830240064,-3784.69,9.999e-05,2]
[348866553,1736830240074,-2056.69,9.999e-05,2]
[348866554,1736830240083,-3874.96,9.999e-05,2]
[348866555,1736830240092,-464.99662067,9.999e-05,2]
[348866556,1736830240102,-464.99662067,9.999e-05,2]
[348866557,1736830240112,-464.99662067,0.0001,2]
[348866558,1736830240122,-502.0,0.0001,2]
[348866559,1736830240131,-102356.53570987,0.0001,2]
[348866569,1736830240463,-496.99999,0.0001,2]
[348866572,1736830240482,-900.0,0.0001,2]
[348866575,1736830240502,-260650.07510424,0.0001,2]
[348866577,1736830240513,-81277.53184,0.0001,2]
[348866579,1736830240524,-44464.33231153,0.0001,2]
[348866583,1736830240553,-973.71010885,0.0001,2]
[348866611,1736830240810,-1304.92033926,9.999e-05,2]
[348866613,1736830240822,-2253.57966074,9.999e-05,2]
[348866615,1736830240831,-2719.02737745,0.0001,2]
[348866617,1736830240842,-131144.46560457,0.0001,2]
[348866721,1736830242841,-213.75012061,8.567e-05,2]
[348866722,1736830242851,-386.5163151,9.993e-05,2]
[348866723,1736830242950,-120.07762476,9.993e-05,2]
[348866724,1736830242960,-643.77,9.993e-05,2]
[348866725,1736830242971,-2674.55,9.995e-05,2]
[348866726,1736830242981,-500.0,9.995e-05,2]
[348866727,1736830242991,-98.80947517,0.0001,2]
[348866728,1736830243010,-8061.9412682,0.0001,2]
[348866729,1736830243061,-3176.60434443,0.0001,2]
[348866769,1736830245810,-361.58237234,9.993e-05,2]
[348866770,1736830245866,-138.41762766,9.993e-05,2]
[348866771,1736830245876,-500.0,9.993e-05,2]
[348866772,1736830245889,-188.783353,9.995e-05,2]
[348866773,1736830245898,-638.76,9.998e-05,2]
[348866774,1736830245908,-1990.29875291,0.0001,2]
[348866775,1736830245920,-3282.32854772,0.0001,2]
[348866776,1736830245979,-2736.46080384,0.0001,2]
[348866777,1736830246036,-934.40077117,0.0001,2]
[348866778,1736830246091,-7200.41139582,0.0001,2]
[348866782,1736830534182,22944.19441835,0.00012,120]
[348866783,1736830611595,917.38,8.219e-05,2]
[348866798,1736831432084,-885.98,8.996e-05,2]
[348866799,1736831432094,-200.69271059,8.996e-05,2]
[348866800,1736831432362,-684.84430892,8.996e-05,2]
[348866801,1736831432373,-590.47,8.997e-05,2]
[348866802,1736831432384,-200.0,8.997e-05,2]
[348866803,1736831432394,-507.23,8.997e-05,2]
[348866804,1736831432404,-1000.0,9.002e-05,2]
[348866806,1736831432413,-407.08,9.006e-05,2]
[348866808,1736831432423,-250.0,9.037e-05,2]
[348866809,1736831432432,-250.0,9.071e-05,2]
[348866810,1736831432441,-250.0,9.075e-05,2]
[348866811,1736831432451,-156.916,9.5e-05,2]
[348866812,1736831432460,-561.9792,9.897e-05,2]
[348866813,1736831432470,-300.0,9.899e-05,2]
[348866814,1736831432479,-437.26,9.9e-05,2]
[348866815,1736831432489,-1004.0,9.9e-05,2]
[348866816,1736831432498,-980.19,9.9e-05,2]
[348866817,1736831432507,-1970.49,9.9e-05,2]
[348866818,1736831432517,-500.0,9.973e-05,2]
[348866819,1736831432526,-678.52,9.98e-05,2]
[348866820,1736831432536,-336.5256642,9.992e-05,2]
[348866821,1736831432545,-457.32022624,9.992e-05,2]
[348866822,1736831432554,-150.0,9.992e-05,2]
[348866823,1736831432564,-500.0,9.993e-05,2]
[348866824,1736831432576,-500.0,9.993e-05,2]
[348866825,1736831432596,-500.0,9.993e-05,2]
[348866826,1736831432609,-500.0,9.993e-05,2]
[348866827,1736831432618,-500.0,9.993e-05,2]
[348866828,1736831432628,-500.0,9.993e-05,2]
[348866829,1736831432637,-861.71,9.993e-05,2]
[348866830,1736831432647,-500.0,9.993e-05,2]
[348866831,1736831432656,-500.0,9.993e-05,2]
[348866832,1736831432665,-500.0,9.993e-05,2]
[348866833,1736831432675,-500.0,9.993e-05,2]
[348866834,1736831432685,-500.0,9.993e-05,2]
[348866835,1736831432695,-500.0,9.993e-05,2]
[348866836,1736831432704,-500.0,9.993e-05,2]
[348866837,1736831432714,-512.8,9.993e-05,2]
[348866838,1736831432723,-500.0,9.993e-05,2]
[348866839,1736831432732,-620.73,9.993e-05,2]
[348866840,1736831432742,-500.0,9.993e-05,2]
[348866841,1736831432751,-500.0,9.993e-05,2]
[348866842,1736831432760,-818.86,9.993e-05,2]
[348866843,1736831432770,-500.0,9.993e-05,2]
[348866844,1736831432779,-500.0,9.993e-05,2]
[348866845,1736831432789,-524.44,9.993e-05,2]
[348866846,1736831432798,-502.85342946,9.993e-05,2]
[348866847,1736831432807,-500.0,9.993e-05,2]
[348866848,1736831432816,-500.0,9.993e-05,2]
[348866849,1736831432827,-500.0,9.993e-05,2]
[348866850,1736831432836,-500.0,9.993e-05,2]
[348866851,1736831432845,-500.0,9.993e-05,2]
[348866852,1736831432854,-500.0,9.993e-05,2]
[348866853,1736831432864,-500.0,9.993e-05,2]
[348866854,1736831432873,-500.0,9.993e-05,2]
[348866855,1736831432882,-500.0,9.993e-05,2]
[348866856,1736831432891,-500.0,9.993e-05,2]
[348866857,1736831432901,-500.0,9.993e-05,2]
[348866858,1736831432910,-500.0,9.993e-05,2]
[348866859,1736831432919,-500.0,9.993e-05,2]
[348866860,1736831432928,-500.0,9.993e-05,2]
[348866861,1736831432938,-668.14,9.993e-05,2]
[348866862,1736831432948,-500.0,9.993e-05,2]
[348866863,1736831432957,-815.89,9.993e-05,2]
[348866864,1736831432967,-500.0,9.993e-05,2]
[348866865,1736831432976,-534.47,9.993e-05,2]
[348866866,1736831432985,-500.0,9.993e-05,2]
[348866867,1736831432995,-500.0,9.993e-05,2]
[348866868,1736831433004,-500.0,9.993e-05,2]
[348866869,1736831433013,-500.0,9.993e-05,2]
[348866870,1736831433024,-500.0,9.993e-05,2]
[348866871,1736831433033,-500.0,9.993e-05,2]
[348866872,1736831433043,-500.0,9.993e-05,2]
[348866873,1736831433053,-500.0,9.993e-05,2]
[348866874,1736831433062,-819.43,9.993e-05,2]
[348866875,1736831433072,-500.0,9.993e-05,2]
[348866876,1736831433083,-674.3,9.993e-05,2]
[348866877,1736831433092,-897.76,9.993e-05,2]
[348866878,1736831433102,-830.24,9.993e-05,2]
[348866879,1736831433111,-500.0,9.993e-05,2]
[348866880,1736831433121,-339.0768675,9.993e-05,2]
[348866881,1736831433130,-341.6280709,9.993e-05,2]
[348866882,1736831433140,-500.0,9.993e-05,2]
[348866883,1736831433149,-613.54,9.993e-05,2]
[348866884,1736831433159,-500.0,9.993e-05,2]
[348866885,1736831433168,-500.0,9.993e-05,2]
[348866886,1736831433177,-500.0,9.993e-05,2]
[348866887,1736831433187,-500.0,9.993e-05,2]
[348866888,1736831433196,-604.19,9.993e-05,2]
[348866889,1736831433205,-500.0,9.993e-05,2]
[348866890,1736831433215,-500.0,9.993e-05,2]
[348866891,1736831433225,-500.0,9.993e-05,2]
[348866892,1736831433235,-500.0,9.993e-05,2]
[348866893,1736831433244,-500.0,9.993e-05,2]
[348866894,1736831433254,-500.0,9.993e-05,2]
[348866895,1736831433263,-500.0,9.993e-05,2]
[348866896,1736831433273,-995.87,9.993e-05,2]
[348866897,1736831433283,-558.61,9.993e-05,2]
[348866898,1736831433292,-500.0,9.993e-05,2]
[348866899,1736831433302,-591.47,9.993e-05,2]
[348866900,1736831433311,-500.0,9.993e-05,2]
[348866901,1736831433322,-200.69271059,9.993e-05,2]
[348866902,1736831433333,-500.0,9.993e-05,2]
[348866903,1736831433342,-797.24,9.993e-05,2]
[348866904,1736831433352,-500.0,9.993e-05,2]
[348866905,1736831433362,-500.0,9.993e-05,2]
[348866906,1736831433372,-500.0,9.993e-05,2]
[348866907,1736831433381,-500.0,9.994e-05,2]
[348866908,1736831433392,-500.0,9.994e-05,2]
[348866909,1736831433401,-500.0,9.994e-05,2]
[348866910,1736831433410,-500.0,9.994e-05,2]
[348866911,1736831433422,-500.0,9.994e-05,2]
[348866912,1736831433431,-500.0,9.994e-05,2]
[348866913,1736831433441,-500.0,9.994e-05,2]
[348866914,1736831433450,-500.0,9.994e-05,2]
[348866915,1736831433463,-503.19120319,9.994e-05,2]
[348866916,1736831433473,-507.61955957,9.994e-05,2]
[348866917,1736831433483,-500.0,9.994e-05,2]
[348866918,1736831433493,-500.0,9.994e-05,2]
[348866919,1736831433504,-505.66858307,9.994e-05,2]
[348866920,1736831433514,-500.0,9.994e-05,2]
[348866921,1736831433523,-500.0,9.994e-05,2]
[348866922,1736831433534,-500.0,9.994e-05,2]
[348866923,1736831433543,-500.0,9.994e-05,2]
[348866924,1736831433553,-500.0,9.994e-05,2]
[348866925,1736831433563,-500.0,9.994e-05,2]
[348866926,1736831433573,-500.0,9.994e-05,2]
[348866927,1736831433588,-500.0,9.994e-05,2]
[348866928,1736831433598,-500.0,9.994e-05,2]
[348866929,1736831433608,-500.0,9.994e-05,2]
[348866930,1736831433618,-500.0,9.994e-05,2]
[348866931,1736831433629,-500.0,9.994e-05,2]
[348866932,1736831433640,-500.0,9.994e-05,2]
[348866933,1736831433650,-500.0,9.994e-05,2]
[348866934,1736831433661,-500.0,9.994e-05,2]
[348866935,1736831433673,-500.0,9.994e-05,2]
[348866936,1736831433686,-500.0,9.994e-05,2]
[348866937,1736831433697,-500.0,9.994e-05,2]
[348866938,1736831433709,-500.0,9.994e-05,2]
[348866939,1736831433720,-500.0,9.994e-05,2]
[348866940,1736831433730,-500.0,9.994e-05,2]
[348866941,1736831433740,-500.0,9.994e-05,2]
[348866942,1736831433749,-500.0,9.994e-05,2]
[348866943,1736831433760,-500.0,9.994e-05,2]
[348866944,1736831433770,-500.0,9.994e-05,2]
[348866945,1736831433780,-500.0,9.994e-05,2]
[348866946,1736831433790,-500.0,9.994e-05,2]
[348866947,1736831433801,-500.0,9.994e-05,2]
[348866948,1736831433810,-153.46453844,9.994e-05,2]
[348866949,1736831433819,-500.0,9.994e-05,2]
[348866950,1736831433830,-500.0,9.994e-05,2]
[348866951,1736831433840,-500.0,9.994e-05,2]
[348866952,1736831433851,-500.0,9.994e-05,2]
[348866953,1736831433862,-500.0,9.994e-05,2]
[348866954,1736831433873,-500.0,9.994e-05,2]
[348866955,1736831433883,-500.0,9.994e-05,2]
[348866956,1736831433893,-500.0,9.994e-05,2]
[348866957,1736831433903,-500.0,9.994e-05,2]
[348866958,1736831433913,-500.0,9.994e-05,2]
[348866959,1736831433922,-500.0,9.994e-05,2]
[348866960,1736831433933,-500.0,9.994e-05,2]
[348866961,1736831433943,-500.0,9.994e-05,2]
[348866962,1736831433952,-500.0,9.994e-05,2]
[348866963,1736831433962,-500.0,9.994e-05,2]
[348866964,1736831433972,-500.0,9.994e-05,2]
[348866965,1736831433981,-500.0,9.994e-05,2]
[348866966,1736831433991,-500.0,9.994e-05,2]
[348866967,1736831434001,-1835.49,9.994e-05,2]
[348866968,1736831434011,-1558.84,9.994e-05,2]
[348866969,1736831434021,-2035.11,9.994e-05,2]
[348866970,1736831434031,-3502.51,9.994e-05,2]
[348866971,1736831434040,-8907.55,9.994e-05,2]
[348866972,1736831434050,-725.08,9.994e-05,2]
[348866973,1736831434060,-1812.73,9.994e-05,2]
[348866974,1736831434070,-2348.16,9.994e-05,2]
[348866975,1736831434080,-500.0,9.994e-05,2]
[348866976,1736831434090,-692.6,9.994e-05,2]
[348866977,1736831434099,-527.74421998,9.995e-05,2]
[348866978,1736831434109,-3641.65,9.995e-05,2]
[348866979,1736831434119,-979.65,9.995e-05,2]
[348866980,1736831434130,-500.0,9.995e-05,2]
[348866981,1736831434139,-887.31,9.995e-05,2]
[348866982,1736831434149,-500.0,9.995e-05,2]
[348866983,1736831434159,-883.48,9.995e-05,2]
[348866984,1736831434168,-500.0,9.995e-05,2]
[348866985,1736831434178,-500.0,9.995e-05,2]
[348866986,1736831434188,-500.0,9.995e-05,2]
[348866987,1736831434198,-525.79,9.995e-05,2]
[348866988,1736831434208,-500.0,9.995e-05,2]
[348866989,1736831434217,-1154.1,9.995e-05,2]
[348866990,1736831434225,-500.0,9.995e-05,2]
[348866991,1736831434234,-973.61,9.995e-05,2]
[348866992,1736831434243,-1591.17,9.995e-05,2]
[348866993,1736831434252,-1625.98,9.995e-05,2]
[348866994,1736831434262,-1946.51,9.995e-05,2]
[348866995,1736831434272,-1629.63,9.995e-05,2]
[348866996,1736831434283,-4087.72,9.995e-05,2]
[348866997,1736831434293,-1776.68,9.995e-05,2]
[348866998,1736831434303,-3488.31,9.995e-05,2]
[348866999,1736831434312,-1547.0,9.995e-05,2]
[348867000,1736831434322,-1678.38,9.995e-05,2]
[348867001,1736831434333,-1340.65,9.996e-05,2]
[348867002,1736831434343,-1183.76,9.996e-05,2]
[348867003,1736831434353,-615.18,9.996e-05,2]
[348867004,1736831434363,-500.0,9.996e-05,2]
[348867005,1736831434373,-993.1,9.996e-05,2]
[348867006,1736831434382,-1698.75,9.996e-05,2]
[348867007,1736831434392,-648.67,9.996e-05,2]
[348867008,1736831434402,-3208.46,9.996e-05,2]
[348867009,1736831434412,-2703.68,9.996e-05,2]
[348867010,1736831434422,-1425.82,9.996e-05,2]
[348867011,1736831434431,-1773.19,9.996e-05,2]
[348867012,1736831434441,-2959.16,9.996e-05,2]
[348867013,1736831434450,-7995.75,9.996e-05,2]
[348867014,1736831434460,-500.0,9.996e-05,2]
[348867015,1736831434470,-1328.24,9.996e-05,2]
[348867016,1736831434480,-789.996222,9.996e-05,2]
[348867017,1736831434490,-899.69,9.996e-05,2]
[348867018,1736831434499,-1327.74,9.996e-05,2]
[348867019,1736831434509,-629.175346,9.996e-05,2]
[348867020,1736831434519,-500.0,9.996e-05,2]
[348867021,1736831434528,-2651.75,9.996e-05,2]
[348867022,1736831434539,-389.42905868,9.996e-05,2]
[348867023,1736831434549,-2217.57,9.996e-05,2]
[348867024,1736831434559,-3423.06,9.996e-05,2]
[348867025,1736831434569,-3706.61,9.996e-05,2]
[348867026,1736831434581,-3785.28,9.996e-05,2]
[348867027,1736831434593,-4529.56,9.996e-05,2]
[348867028,1736831434602,-2152.37,9.996e-05,2]
[348867029,1736831434612,-1115.59,9.996e-05,2]
[348867030,1736831434622,-500.0,9.996e-05,2]
[348867031,1736831434631,-1374.61,9.996e-05,2]
[348867032,1736831434641,-1444.93,9.996e-05,2]
[348867033,1736831434651,-3801.32,9.996e-05,2]
[348867034,1736831434660,-544.85,9.996e-05,2]
[348867035,1736831434671,-574.29,9.996e-05,2]
[348867036,1736831434680,-500.0,9.996e-05,2]
[348867037,1736831434689,-2262.44,9.996e-05,2]
[348867038,1736831434699,-500.0,9.996e-05,2]
[348867039,1736831434708,-500.0,9.996e-05,2]
[348867040,1736831434717,-1054.97,9.996e-05,2]
[348867041,1736831434727,-500.0,9.996e-05,2]
[348867042,1736831434736,-500.0,9.996e-05,2]
[348867043,1736831434745,-1056.67,9.996e-05,2]
[348867044,1736831434755,-500.0,9.996e-05,2]
[348867045,1736831434765,-2187.59,9.996e-05,2]
[348867046,1736831434774,-500.0,9.996e-05,2]
[348867047,1736831434783,-500.0,9.996e-05,2]
[348867048,1736831434792,-232.49831033,9.996e-05,2]
[348867049,1736831434802,-232.49831033,9.997e-05,2]
[348867050,1736831434811,-232.49831033,9.997e-05,2]
[348867051,1736831434821,-2273.334,9.997e-05,2]
[348867052,1736831434833,-162.848,9.997e-05,2]
[348867053,1736831434842,-500.0,9.997e-05,2]
[348867054,1736831434851,-500.0,9.997e-05,2]
[348867055,1736831434860,-508.14510965,9.997e-05,2]
[348867056,1736831434870,-415.4368493,9.997e-05,2]
[348867057,1736831434880,-503.28985403,9.997e-05,2]
[348867058,1736831434889,-500.0,9.997e-05,2]
[348867059,1736831434900,-240.39139737,9.997e-05,2]
[348867060,1736831434910,-500.0,9.997e-05,2]
[348867061,1736831434919,-504.90186689,9.997e-05,2]
[348867062,1736831434928,-500.0,9.997e-05,2]
[348867063,1736831434937,-500.0,9.997e-05,2]
[348867064,1736831434947,-502.23108249,9.997e-05,2]
[348867065,1736831434956,-500.0,9.997e-05,2]
[348867066,1736831434965,-500.0,9.997e-05,2]
[348867067,1736831434975,-500.0,9.997e-05,2]
[348867068,1736831434985,-500.0,9.997e-05,2]
[348867069,1736831434996,-629.71,9.997e-05,2]
[348867070,1736831435006,-500.0,9.997e-05,2]
[348867071,1736831435015,-500.0,9.997e-05,2]
[348867072,1736831435025,-500.0,9.997e-05,2]
[348867073,1736831435034,-500.0,9.997e-05,2]
[348867074,1736831435044,-500.0,9.997e-05,2]
[348867075,1736831435053,-458.31105258,9.997e-05,2]
[348867076,1736831435063,-500.0,9.997e-05,2]
[348867077,1736831435072,-519.59,9.997e-05,2]
[348867078,1736831435084,-500.0,9.997e-05,2]